Cogmind - Beta 16 @@@ ROGUE MODE // 2025.10.29 @ 19:12:27 // Halloween2019/Abominations Player: MolePlayingNice Result: Destroyed by Lesser Abomination with Small Laser Performance ------------- Evolutions (0) 0 Regions Visited (1) 200 Robots Destroyed (9) 45 Value Destroyed (443) 443 Prototype IDs (2) 40 Alien Tech Used (0) 0 Bonus (0) 0 TOTAL SCORE: 728 Bonus ------- None Cogmind --------- Core Integrity 0/250 Matter 300/300 Energy 217/250 System Corruption 5% Temperature Cool (57) Movement Treading (240) Ox1 Location -10/Materials Parts ------- > --- POWER (1) -------- Ion Engine > --- PROPULSION (2) --- Light Treads Armored Wheel > --- UTILITY (2) ------ Heat Sink Large Storage Unit > --- WEAPON (2) ------- Particle Cannon Particle Cannon > --- INVENTORY (15) --- Light Ion Engine Aluminum Leg Wheel Huge Storage Unit Medium Matter Pod (100) Targeting Computer Light Armor Plating Hacking Suite Tractor Beam Particle Gun Particle Cannon Rocket Launcher Rocket Launcher Rocket Launcher Mining Laser Peak State ------------ > --- POWER ------------ Ion Engine > --- PROPULSION ------- Light Treads Armored Wheel > --- UTILITY ---------- Large Storage Unit Light Armor Plating > --- WEAPON ----------- Particle Cannon Particle Cannon > --- INVENTORY -------- Light Ion Engine Aluminum Leg Wheel Heat Sink Huge Storage Unit Medium Matter Pod Targeting Computer Hacking Suite Tractor Beam Particle Gun Rocket Launcher Rocket Launcher Rocket Launcher Mining Laser Welding Torch [Rating: 12] Favorites ----------- Power Ion Engine Engine Ion Engine Propulsion Aluminum Leg Treads Light Treads Leg Aluminum Leg Wheel Armored Wheel Utility Large Storage Unit Device Heat Sink Storage Large Storage Unit Processor Signal Interpreter Protection Light Armor Plating Weapon Assault Rifle Energy Gun Medium Laser Energy Cannon Particle Cannon Ballistic Gun Assault Rifle Launcher Grenade Launcher Special Weapon Mining Laser Build | -11 -10 ------- Run | Yrd Mat Slots Evolved . | . . Power . | . . Propulsion . | . . Utility . | . . Weapon . | . . Parts Attached 18 | 2 16 Power 1 | . 1 Engine 1 | . 1 Core . | . . Reactor . | . . Propulsion 6 | . 6 Treads 2 | . 2 Leg 2 | . 2 Wheel 2 | . 2 Hover . | . . Flight . | . . Utility 5 | 1 4 Device 2 | 1 1 Storage 1 | . 1 Processor 1 | . 1 Hackware . | . . Protection 1 | . 1 Artifact . | . . Weapon 6 | 1 5 Energy Gun 1 | 1 . Energy Cannon 2 | . 2 Ballistic Gun 1 | . 1 Ballistic Cannon . | . . Launcher 1 | . 1 Special Weapon 1 | . 1 Impact Weapon . | . . Slashing Weapon . | . . Piercing Weapon . | . . Special Melee Weapon . | . . Unidentified Prototypes . | . . Parts Lost 5 | . 5 Power 1 | . 1 Propulsion 2 | . 2 Utility . | . . Weapon 2 | . 2 Highest Loss Streak 2 | . 2 To Critical Strikes . | . . Average Backups 8 | 5 8 Power . | 1 . Propulsion 1 | 3 1 Utility 2 | . 3 Weapon 2 | 1 2 Tool/Special . | . . Unused Backups 13 | . 13 Power 1 | . 1 Propulsion . | . . Utility 6 | . 6 Weapon 5 | . 5 Tool/Special 1 | . 1 Average Slot Usage (%) 94 | . 94 Engine 11 | . 11 Treads 9 | . 9 Leg 13 | . 13 Wheel 4 | . 4 Device 2 | . 2 Storage 14 | . 14 Processor 7 | . 7 Protection 1 | . 1 Energy Gun 2 | . 2 Energy Cannon 5 | . 5 Ballistic Gun 16 | . 16 Special Weapon 3 | . 3 Peak Build Rating 12 | 7 12 Average Rating 7 | 6 7 On Entrance 6 | 6 6 Avg Prop Armor Cover (%) 10 | . 10 Naked Turns . | . . Heaviest Build 36 | 14 36 Greatest Support 40 | 20 40 Greatest Overweight (x) 3 | . 3 Average Overweight (x) 1 | . 1 Largest Inventory Capacity 15 | 8 15 Average Capacity 14 | 8 14 Most Carried 15 | 6 15 Average Carried 8 | 5 8 Final Capacity 15 | 8 15 Final Carried 15 | 6 15 Class Distribution -------------------- 100% | Mutant Dominant Class ---------------- Mutant | -10/Materials Resources | -11 -10 ----------- Run | Yrd Mat Matter Collected 598 | 226 372 Remotely 10 | 10 . Salvage Created 438 | 121 317 Parts 29 | 3 26 Haulers Intercepted . | . . Recyclers Shooed . | . . Parts Field Recycled . | . . Retrieved Matter . | . . Parts Self-Destructed . | . . Prevented . | . . Parts Restored . | . . Kills | -11 -10 ------- Run | Yrd Mat Combat Hostiles Destroyed 7 | . 7 Guns 5 | . 5 Cannons 1 | . 1 AOE 1 | . 1 Classes Destroyed 3 | 2 1 Tunneler 1 | 1 . Recycler 1 | 1 . Abomination 7 | . 7 Best Kill Streak 4 | 2 4 Combat Bots Only 4 | . 4 Max Kills in Single Turn 1 | 1 1 Gunslinging . | . . Exploded 1 | . 1 Melee . | . . Uniques/NPCs Destroyed . | . . Combat | -11 -10 -------- Run | Yrd Mat Hostile Shots Fired 79 | . 79 Missed 16 | . 16 Hits 63 | . 63 Melee 24 | . 24 Projectile 39 | . 39 Critical Strikes 4 | . 4 Damage Taken 1460 | . 1460 Core 255 | . 255 Absorbed by Shields . | . . Core Remaining (%) 100 | 100 . Volleys Fired 38 | 2 36 Largest 2 | 2 2 Hottest 136 | 70 136 Shots Fired 70 | 4 66 Gun 44 | 4 40 Cannon 18 | . 18 Launcher 1 | . 1 Special 7 | . 7 Kinetic 38 | 2 36 Thermal 31 | 2 29 Explosive 1 | . 1 Electromagnetic . | . . Robot Hit Streak 17 | 3 17 Robot Miss Streak 4 | . 4 Penetration Max . | . . Secondary Targets 1 | . 1 Max Gunslinging Chain 1 | . 1 Shots Hit Robots 53 | 3 50 Core Hits 25 | 3 22 Critical Kills 1 | . 1 Critical Parts Destroyed . | . . Critical Strikes 2 | 1 1 Burn 1 | 1 . Destroy 1 | . 1 Melee Attacks . | . . Impact . | . . Slashing . | . . Piercing . | . . Sneak Attacks . | . . Combat Hostiles . | . . Follow-up Attacks . | . . Damage Inflicted 936 | 38 898 Guns 437 | 38 399 Cannons 333 | . 333 Explosions 106 | . 106 Melee . | . . Ramming . | . . Kinetic 351 | 13 338 Thermal 479 | 25 454 Explosive 106 | . 106 Electromagnetic . | . . Impact . | . . Slashing . | . . Piercing . | . . Highest Corruption 5 | . 5 Average Corruption 3 | . 3 Corruption Purged . | . . Corruption Blocked . | . . Effects 8 | . 8 Message Errors 1 | . 1 Matter Fused 3 | . 3 Heat Flow Errors 1 | . 1 Energy Discharges 1 | . 1 Data Loss (minor) 2 | . 2 Overload Shots . | . . Overflow Damage . | . . Projectiles . | . . Explosions . | . . Melee . | . . Knockbacks . | . . Impact . | . . Kinetic . | . . Secondary . | . . Self-Inflicted Damage 37 | . 37 Shots 1 | . 1 Rammed . | . . Targets Rammed . | . . Kicked . | . . Crushed . | . . Highest Temperature 221 | 18 221 Average Temperature 48 | 10 50 Received Heat Transfer 126 | . 126 Siege Activations . | . . Martial Activations . | . . Shielding Activations . | . . Robots Disrupted . | . . Combat Hostiles . | . . Robots Corrupted . | . . Combat Hostiles . | . . Parts Fried . | . . Impact Corruptions . | . . Robots Melted . | . . Combat Hostiles . | . . Parts Melted 1 | 1 . Heat Transferred 325 | 148 177 Parts Sabotaged . | . . Parts Stolen . | . . Parts Stripped . | . . Power Chain Reactions . | . . Alert | -11 -10 ------- Run | Yrd Mat Maximum Alert Level . | . . Low Security (%) 100 | 100 100 Level 1 . | . . Level 2 . | . . Level 3 . | . . Level 4 . | . . Level 5 . | . . High Security . | . . Max Security . | . . Peak Influence 15 | 10 15 Initial . | . . Average . | 5 . Influence Increases 49 | 10 39 Destroy 0b10 Robot/NC 10 | 10 . Successful Hack 18 | . 18 Disable Machine 15 | . 15 Destroy Structure 6 | . 6 Influence Decreases 49 | 10 39 Time Decay 41 | 10 31 Lost Part 8 | . 8 Squads Dispatched 4 | . 4 Investigation 2 | . 2 Extermination . | . . Reinforcement . | . . Assault 2 | . 2 Garrison . | . . Intercept . | . . Searches Triggered . | . . Construction Impeded . | . . Haulers Reinforced . | . . Active Scanning Responses . | . . Cargo Convoy Interrupts . | . . Stealth | -11 -10 --------- Run | Yrd Mat Distress Signals 3 | . 3 Communications Jammed . | . . Distress Signals . | . . Times Spotted 8 | . 8 Peak Tracking Total 4 | . 4 Tactical Retreats . | . . Traps | -11 -10 ------- Run | Yrd Mat Traps Triggered . | . . Indirectly . | . . Trap Hack Attempts . | . . Triggered . | . . Disarmed . | . . Reprogrammed . | . . Reused . | . . Traps Extracted . | . . Installed . | . . Triggered . | . . Machines | -11 -10 ---------- Run | Yrd Mat Machines Disabled 1 | . 1 Max in Single Turn 1 | . 1 Machines Repaired . | . . Machines Dismantled . | . . Machines Sabotaged . | . . Overloaded Fab Kills . | . . Hacking | -11 -10 --------- Run | Yrd Mat Machines Accessed 3 | . 3 Terminals 3 | . 3 Fabricators . | . . Repair Stations . | . . Recycling Units . | . . Scanalyzers . | . . Garrison Access . | . . Total Hacks 6 | . 6 Successful 4 | . 4 Failed 2 | . 2 Catastrophic 1 | . 1 Database Lockouts . | . . Manual 3 | . 3 Terminals 6 | . 6 Fabricators . | . . Repair Stations . | . . Recycling Units . | . . Scanalyzers . | . . Garrison Access . | . . Terminal Hacks 4 | . 4 Prototype ID Bank 1 | . 1 Alert Level 1 | . 1 Hauler Manifests 1 | . 1 Registered Components 1 | . 1 Fabricator Hacks . | . . Repair Station Hacks . | . . Recycling Unit Hacks . | . . Scanalyzer . | . . Garrison Access Hacks . | . . Unauthorized Hacks . | . . Terminals . | . . Fabricators . | . . Repair Stations . | . . Recycling Units . | . . Scanalyzers . | . . Garrison Access . | . . Data Cores Recovered . | . . Used . | . . Hacking Detections 3 | . 3 Full Trace Events . | . . Feedback Events . | . . Feedback Blocked . | . . Robot Schematics Acquired . | . . Robots Built . | . . Authchips . | . . Time . | . . Total Robot Build Rating . | . . Part Schematics Acquired . | . . Parts Built . | . . Authchips . | . . Time . | . . Total Part Build Rating . | . . Part Studies Acquired . | . . Parts Repaired . | . . Time . | . . Parts Recycled . | . . Recycled Matter . | . . Retrieved Matter . | . . Retrieved Components . | . . Parts Scanalyzed . | . . Part Schematics Acquired . | . . Parts Damaged . | . . Bothacking | -11 -10 ------------ Run | Yrd Mat Used RIF Installer . | . . Robots Hacked . | . . Non-combat . | . . Combat . | . . Robot Hacks Applied . | . . Relay Couplers Released . | . . Fabnet Peak Effective % . | . . Robots Rewired . | . . Allies Hacked . | . . Hacks Repelled . | . . Allies | -11 -10 -------- Run | Yrd Mat Total Allies . | . . Largest Group . | . . Highest-Rated Group . | . . Highest-Rated Ally . | . . Total Orders . | . . Ally Attacks . | . . Total Damage . | . . Kills . | . . Allies Corrupted . | . . Allies Melted . | . . Intel | -11 -10 ------- Run | Yrd Mat Active Infowar (turns) . | . . Robot Analysis Total . | . . Derelict Logs Recovered . | . . Drone Launches . | . . Drone Recoveries . | . . Exploration | -11 -10 ------------- Run | Yrd Mat Turns Passed 586 | 31 555 Spaces Moved 255 | 17 238 Core . | . . Treads 42 | . 42 Legs 96 | 17 79 Wheels 117 | . 117 Hover . | . . Flight . | . . Fastest Speed 110 | 120 110 Average Speed 149 | 120 151 Slowest Speed 240 | 120 240 Overloaded Moves . | . . Propulsion Burnouts . | . . Robots Hopped . | . . Potential Cave-ins . | . . Cave-ins Triggered . | . . Exploration Rate (%) 20 | 3 37 Regions Visited 1 Branch Regions . Pre-discovered Areas . | . . Known Exits Taken . | . . Unknown Exits Taken 1 | 1 . Scrap Searched . | . . Spaces Dug . | . . Terrain Destroyed 4 | . 4 Melee . | . . Projectile 2 | . 2 AOE 2 | . 2 Terrain Rammed . | . . Walls Destroyed . | . . Machines Disabled . | . . Actions | -11 -10 --------- Run | Yrd Mat Total 348 | 24 324 Wait 10 | . 10 Move 254 | 16 238 Hop . | . . Pick Up 17 | 1 16 Fast Attach 5 | 1 4 Attach 5 | . 5 Detach 2 | 1 1 Swap 10 | 1 9 Drop 7 | 2 5 Fire 38 | 2 36 Melee . | . . Ram . | . . Kick . | . . Crush . | . . Escape Stasis . | . . Rewire . | . . Trap . | . . Miscellaneous . | . . Route ------- -11/Scrapyard -10/Materials History --------- Turn | Location | Event 9 | -11/Scrapyard | Discovered new exit (range 3) 32 | -11/Scrapyard | Entered Materials 159 | -10/Materials | Core integrity fell below 50% 310 | -10/Materials | Core integrity fell below 20% 343 | -10/Materials | Build established: Mutant 587 | -10/Materials | Destroyed by Lesser Abomination with Small Laser Last Messages --------------- 00481_ Acquired Particle Cannon. 00497_ System corrupted: Matter fused (-6). 00504_ Acquired 20 matter. 00523_ System corrupted: Energy discharge (-57). 00524_ Acquired 12 matter. 00546_ Lesser Abomination destroyed. 00549_ Acquired 60 matter. 00552_ System corrupted: Heat flow error (+206). 00556_ Acquired 3 matter. 00568_ Parts repaired by Paradox Anomaly. 00572_ Frozen by Ice Anomaly. 00573_ Parts repaired by Paradox Anomaly. 00573_ Frozen by Ice Anomaly. 00575_ System corrupted: Component data lost. 00581_ Parts repaired by Paradox Anomaly. 00581_ Unstable Anomaly suddenly flashes brightly. 00581_ Engulfed by violent ripples tearing at the fabric of space. 00582_ Parts repaired by Paradox Anomaly. Map ----- +----------------------------------------------------+ | | | | | | | | | | | | | | | ???????????????????????????????????????########### | | ???????????????#####???????????????????# ! # | | ???????????????# #???????????????????# # | | ???????????????# ] #???????????????????# # | | ???????????????# #??????????????###### # | | ???????????????#[ ################ ######+##### | | ???????????????#[ #???? | | ???????????????#| ################ ###### #???? | | ???????????????#####??????????????## ##????# #???? | | ???????????????????????????#######?# #?????# #???? | | ???????????????????????????# ?# #?????# #???? | | ???????????????????????????# # #?????# #???? | | ????????????#????#?????????# # ####### #??? | | ???????????? ??#%????????# + ## % # #??? | | ???????????? % %# %???????# # ## # ### " | | ??????????????"%%+ %############### ## #/ # " | | ?????????????????# A % #??????# ## !#== + " | | ?????????????????# %% | ########+## ! + =%# " | | ?????????????????# % %%@ # # "" #%! # " | | ?????????????????######## # # "T #!! #? | | ????????????????????????#% # #%"" # #? | | ????????????????????????# # """"""" # % # #?? | | ???????????############## + """"""" ###### #?? | | ??????????# = = # """"""" #????# #?? | | ??????????# !!! # """"""" #???## ##? | | ??????????# % # """"""" #???# #? | | ??????????# ####################???##???# #? | | ??????????# ??????????????????????????????# #? | | ??????????????????????????????????????????# #? | | ??????????????????????????????????????????# #? | | ??????????????????????????????????????????### ###? | | ????????????????????????????????????????????# #??? | | ???????????????????????????????????????????##%##?? | | ?????????????????????????????????########### ## | | ?????????????????????????????????# | | ?????????????????????????????????# ####### ### | | ?????????????????????????????????# ###########?? | | ?????????????????????????????????#* + #?? | | ?????????????????????????????????# # """ #?? | | ??????????????????????##+######### # """"" #?? | | ????????????????????? # """""???? | | ????????????????????? %+ """"" #?? | | ????????????????????? # """ #?? | +----------------------------------------------------+ Best States ------------- Heat Dissipation 35 Energy Generation 10 Energy Capacity 250 Matter Stores 300 Matter Capacity 300 Sight Range 16 Terrain Scan Density 10 Armor Coverage 150 Evasion (%) 55 Recoil Reduction 2 Item Schematics ----------------- None Robot Schematics ------------------ None Fabricated ------------ Nothing Repaired ---------- Nothing Studied --------- None Alien Tech Used ----------------- None Achievements -------------- None Challenges ------------ None Game ------ Seed ChromionTowerDetonator Manual? 0 Play Time 00:11:08 Cumulative 339.0 hours Start 2025.10.29 @ 19:03:33 End 2025.10.29 @ 19:12:27 Sessions 1 Manual Loads 0 Difficulty Rogue Special Mode Halloween2019/Abominations Game No. 110 Rogue 110 Adventurer 0 Explorer 0 Win Type - Total 7 Types 3/0/3/0/0/0/0/0/0/1 Lore% 76 Gallery% 83 Achievement% 65 Wizard Run 0 Options --------- Layout 1 ASCII 0 Keyboard 1 Movement Arrows Keybinds 0 Fullscreen 1 Font 24/Smallcaps Map View 50x35 Zoom Use 0% Tactical HUD 1 Map Filters NONE Filters NONE Steam 1 RUN: 26ad4efb-94de-4870-915d-c9633e84dc0b